Cogmind - Beta 14 *** ADVENTURER MODE // 2025.03.10 @ 01:02:16 Player: Lee Result: Destroyed by H-77 Assassin with Coil Gun Performance ------------- Evolutions (5) 2500 Regions Visited (9) 1800 Robots Destroyed (83) 415 Value Destroyed (2883) 2883 Prototype IDs (2) 40 Alien Tech Used (0) 0 Bonus (0) 0 TOTAL SCORE: 7638 Bonus ------- None Cogmind --------- Core Integrity 0/1000 Matter 45/300 Energy 100/100 System Corruption 2% Temperature Cool (-150) Movement Core (1450) Ox28 Location -4/Proximity Caves Parts ------- > --- POWER (2) -------- (None) > --- PROPULSION (4) --- (None) > --- UTILITY (7) ------ Improved Cryofiber Web Huge Storage Unit Core Analyzer Improved Actuator Array > --- WEAPON (4) ------- (None) > --- INVENTORY (25) --- Fusion Compressor Fusion Compressor Improved Cryofiber Web Improved Heat Sink Improved Heat Sink Microactuators Improved Actuator Array Hardened Medium Armor Plating Hardened Medium Armor Plating Peak State ------------ > --- POWER ------------ Light Angular Momentum Engine Fusion Compressor > --- PROPULSION ------- Light Treads Advanced Treads Antigrav System > --- UTILITY ---------- Improved Heat Sink Advanced Heat Sink Cooling System Improved Coolant Injector Huge Storage Unit Core Analyzer System Shield > --- WEAPON ----------- Shock Rifle Wave Gun Plasma Cannon Katana > --- INVENTORY -------- Fusion Compressor Fusion Compressor Fusion Compressor Fusion Compressor Fusion Compressor Improved Cryofiber Web Improved Cryofiber Web Improved Heat Sink Improved Heat Sink Microactuators Improved Actuator Array Improved Actuator Array Hardened Medium Armor Plating Hardened Medium Armor Plating Beam Rifle Beam Rifle Beam Rifle Particle Gun Ion Cannon Plasma Cannon Katana [Rating: 67] Favorites ----------- Power Fusion Compressor Engine Improved Ion Engine Power Core Fusion Compressor Propulsion Improved Treads Treads Improved Treads Hover Unit Antigrav System Utility Huge Storage Unit Device Improved Heat Sink Storage Huge Storage Unit Processor Core Analyzer Hackware System Shield Protection Improved Light Armor Plating Weapon Katana Energy Gun Improved EM Shotgun Energy Cannon Plasma Cannon Ballistic Gun Light Assault Rifle Slashing Weapon Katana Build | -11 -10 -9 -8 -7 -6 -5 -5 -5 -4 ------- Run | Yrd Mat Mat Mat Fac Fac Fac Upp War Pro Slots Evolved 10 | . . 2 2 2 2 2 . . . Power 1 | . . . 1 . . . . . . Propulsion 2 | . . 1 . 1 . . . . . Utility 5 | . . . 1 . 2 2 . . . Weapon 2 | . . 1 . 1 . . . . . Parts Attached 79 | 6 3 5 18 10 16 6 3 . 12 Power 18 | 1 . 1 4 4 5 . 1 . 2 Engine 7 | 1 . 1 3 1 1 . . . . Core 11 | . . . 1 3 4 . 1 . 2 Reactor . | . . . . . . . . . . Propulsion 18 | 2 2 2 4 2 5 . 1 . . Treads 17 | 2 2 2 4 2 5 . . . . Leg . | . . . . . . . . . . Wheel . | . . . . . . . . . . Hover 1 | . . . . . . . 1 . . Flight . | . . . . . . . . . . Utility 17 | 1 1 . 5 . 4 3 . . 3 Device 9 | . . . 2 . 1 3 . . 3 Storage 2 | 1 . . 1 . . . . . . Processor 2 | . 1 . . . 1 . . . . Hackware 1 | . . . . . 1 . . . . Protection 3 | . . . 2 . 1 . . . . Artifact . | . . . . . . . . . . Weapon 26 | 2 . 2 5 4 2 3 1 . 7 Energy Gun 14 | 1 . 2 1 1 2 2 1 . 4 Energy Cannon 6 | . . . 2 1 . 1 . . 2 Ballistic Gun 4 | 1 . . 1 2 . . . . . Ballistic Cannon . | . . . . . . . . . . Launcher . | . . . . . . . . . . Special Weapon . | . . . . . . . . . . Impact Weapon . | . . . . . . . . . . Slashing Weapon 2 | . . . 1 . . . . . 1 Piercing Weapon . | . . . . . . . . . . Special Melee Weapon . | . . . . . . . . . . Unidentified Prototypes 2 | . . . 1 1 . . . . . Parts Lost 39 | . . . 7 3 2 2 6 . 19 Power 7 | . . . 1 1 . . 1 . 4 Propulsion 9 | . . . 2 1 2 1 2 . 1 Utility 7 | . . . 1 . . 1 . . 5 Weapon 16 | . . . 3 1 . . 3 . 9 Highest Loss Streak 9 | . . . 6 2 1 1 6 . 9 To Critical Strikes . | . . . . . . . . . . Average Slot Usage (%) 79 | . 89 100 97 97 97 82 70 70 48 Engine 3 | . 14 11 12 7 . 5 . . . Core 8 | . . . 4 6 12 5 10 11 6 Treads 12 | . 28 33 26 29 23 15 . . . Hover 2 | . . . . . . . 4 5 2 Device 13 | . . . 8 7 6 8 23 23 13 Storage 6 | . 14 11 9 7 6 5 5 5 5 Processor 4 | . 4 11 4 . 6 5 5 5 5 Hackware 3 | . . . . . 6 5 5 5 2 Protection 2 | . . . 3 7 6 3 . . . Energy Gun 5 | . 14 22 10 9 5 11 . . 3 Energy Cannon 4 | . . . 5 7 6 5 5 5 2 Ballistic Gun 2 | . 14 11 5 4 6 . . . . Slashing Weapon 4 | . . . 4 7 6 5 5 5 3 Peak Build Rating 67 | 6 11 15 29 40 54 64 67 54 54 Average Rating 42 | 3 8 14 24 36 49 54 54 54 36 On Entrance 31 | . 6 11 15 28 35 53 62 54 54 Naked Turns . | . . . . . . . . . . Heaviest Build 119 | 11 11 14 109 112 119 119 116 104 104 Greatest Support 88 | 40 46 69 69 86 88 43 20 11 3 Greatest Overweight (x) 36 | 2 . . 36 1 2 5 34 34 34 Average Overweight (x) 4 | . . . . 1 1 2 19 28 31 Largest Inventory Capacity 25 | 8 8 8 25 25 25 25 25 25 25 Average Capacity 23 | 7 8 8 21 25 25 25 25 25 25 Most Carried 25 | 8 8 8 19 25 25 25 23 20 20 Average Carried 18 | 6 6 6 9 23 24 24 20 20 15 Final Capacity 25 | 8 8 8 25 25 25 25 25 25 25 Final Carried 25 | 6 7 7 19 25 25 23 20 20 9 Class Distribution -------------------- 44% | Hacker-Mutant 14% | Mutant 14% | Tank 9% | Scavenger-Gunner 7% | Hacker-Gunner 5% | Skirmisher Dominant Class ---------------- Mutant | -10/Materials Skirmisher | -9/Materials Mutant | -8/Materials Tank | -7/Factory Scavenger-Gunner | -6/Factory Hacker-Gunner | -5/Factory Hacker-Mutant | -5/Upper Caves Hacker-Mutant | -5/Warlord Mutant | -4/Proximity Caves Resources | -11 -10 -9 -8 -7 -6 -5 -5 -5 -4 ----------- Run | Yrd Mat Mat Mat Fac Fac Fac Upp War Pro Matter Collected 1660 | 219 75 79 235 202 331 216 181 . 122 Remotely . | . . . . . . . . . . Salvage Created 3638 | . 97 517 767 908 891 134 202 . 122 Parts 189 | . 11 32 35 48 41 9 10 . 3 Haulers Intercepted 1 | . . . 1 . . . . . . Recyclers Shooed 1 | . . . . . 1 . . . . Parts Field Recycled . | . . . . . . . . . . Retrieved Matter . | . . . . . . . . . . Parts Self-Destructed 8 | . . . . . . . 5 . 3 Prevented . | . . . . . . . . . . Kills | -11 -10 -9 -8 -7 -6 -5 -5 -5 -4 ------- Run | Yrd Mat Mat Mat Fac Fac Fac Upp War Pro Combat Hostiles Destroyed 64 | . 3 9 13 14 12 2 6 . 5 Guns 40 | . 3 9 9 7 7 . 3 . 2 Cannons 21 | . . . 4 5 5 1 3 . 3 AOE 1 | . . . . 1 . . . . . Classes Destroyed 11 | . 2 4 2 3 . . . . . Worker 5 | . . . 1 . 4 . . . . Builder 4 | . . 1 . . 3 . . . . Hauler 1 | . . . 1 . . . . . . Recycler 3 | . . 1 . 1 1 . . . . Watcher 6 | . 2 1 1 2 . . . . . Swarmer 16 | . 3 2 1 . . . 5 . 5 Grunt 28 | . . 4 8 8 8 . . . . Brawler 3 | . . . . 1 2 . . . . Sentry 12 | . . 3 4 2 1 1 1 . . Hunter 1 | . . . . 1 . . . . . Programmer 4 | . . . . 2 1 1 . . . Best Kill Streak 6 | . 4 3 3 5 6 1 3 . 3 Combat Bots Only 4 | . 3 3 3 4 4 1 3 . 3 Max Kills in Single Turn 3 | . 1 2 1 1 3 1 1 . 1 Gunslinging 1 | . . 1 . . . . . . . Exploded 1 | . . . . 1 . . . . . Melee . | . . . . . . . . . . Uniques/NPCs Destroyed . | . . . . . . . . . . Combat | -11 -10 -9 -8 -7 -6 -5 -5 -5 -4 -------- Run | Yrd Mat Mat Mat Fac Fac Fac Upp War Pro Hostile Shots Fired 761 | . 18 37 124 120 110 14 101 . 237 Missed 220 | . 4 13 22 41 35 6 39 . 60 Damage Taken 6447 | . 95 236 986 868 1006 227 781 . 2248 Core 1469 | . 4 50 214 91 97 . 92 . 921 Absorbed by Shields 208 | . . . 208 . . . . . . Ignored by Resistances 1922 | . 31 69 347 257 278 60 229 . 651 Core Remaining (%) 86 | 100 98 87 61 87 88 . . . . Volleys Fired 177 | . 9 24 44 36 30 5 12 . 17 Largest 3 | . 2 3 3 3 3 3 3 . 2 Hottest 211 | . 60 125 145 150 168 206 211 . 140 Shots Fired 427 | . 18 72 109 90 82 15 21 1 19 Gun 314 | . 18 72 85 54 55 10 9 . 11 Cannon 113 | . . . 24 36 27 5 12 1 8 Launcher . | . . . . . . . . . . Special . | . . . . . . . . . . Kinetic 128 | . 9 24 37 28 30 . . . . Thermal 199 | . . 6 56 36 52 10 19 1 19 Explosive . | . . . . . . . . . . Electromagnetic 100 | . 9 42 16 26 . 5 2 . . Robot Hit Streak 26 | . 5 19 26 14 15 18 7 . 3 Robot Miss Streak 10 | . 2 2 2 5 10 2 1 . 2 Penetration Max . | . . . . . . . . . . Secondary Targets 4 | . 1 3 . . . . . . . Max Gunslinging Chain 1 | . 1 1 . . . . . . . Shots Hit Robots 316 | . 10 55 88 70 56 14 13 . 10 Core Hits 204 | . 7 21 30 49 75 8 8 . 6 Critical Kills 1 | . . . . 1 . . . . . Critical Parts Destroyed . | . . . . . . . . . . Critical Strikes 7 | . . . 4 1 . 1 . . 1 Burn 3 | . . . 2 . . . . . 1 Meltdown 1 | . . . . 1 . . . . . Corrupt 2 | . . . 2 . . . . . . Sever 1 | . . . . . . 1 . . . Melee Attacks 6 | . . . 3 1 1 1 . . . Impact . | . . . . . . . . . . Slashing 6 | . . . 3 1 1 1 . . . Piercing . | . . . . . . . . . . Sneak Attacks 3 | . . . . 1 1 1 . . . Combat Hostiles . | . . . . . . . . . . Follow-up Attacks . | . . . . . . . . . . Damage Inflicted 6026 | . 125 689 1278 1496 1541 366 319 . 212 Guns 3955 | . 125 603 820 847 1109 196 143 . 112 Cannons 1683 | . . . 372 543 378 114 176 . 100 Explosions 121 | . . 86 . 35 . . . . . Melee 267 | . . . 86 71 54 56 . . . Ramming . | . . . . . . . . . . Kinetic 1350 | . 38 114 212 419 567 . . . . Thermal 3237 | . . 148 800 578 920 260 319 . 212 Explosive . | . . . . . . . . . . Electromagnetic 1172 | . 87 427 180 428 . 50 . . . Impact . | . . . . . . . . . . Slashing 267 | . . . 86 71 54 56 . . . Piercing . | . . . . . . . . . . Highest Corruption 2 | . . . . . 1 2 2 2 2 Average Corruption 1 | . . . . . 1 1 2 2 2 Corruption Purged . | . . . . . . . . . . Corruption Blocked . | . . . . . . . . . . Effects 59 | . . . . . 2 2 39 3 13 Message Errors 17 | . . . . . . . 13 . 4 Matter Fused 3 | . . . . . . . 2 . 1 Heat Flow Errors 7 | . . . . . 1 . 4 1 1 Energy Discharges 10 | . . . . . 1 2 7 . . Parts Rejected 1 | . . . . . . . . . 1 Parts Fused 1 | . . . . . . . 1 . . Data Loss (minor) 12 | . . . . . . . 8 1 3 Data Loss (major) 4 | . . . . . . . 2 . 2 Misfires 2 | . . . . . . . . 1 1 Alerts 2 | . . . . . . . 2 . . Overload Shots . | . . . . . . . . . . Overflow Damage 15 | . . . . . 14 . 1 . . Projectiles 1 | . . . . . . . 1 . . Explosions . | . . . . . . . . . . Melee 14 | . . . . . 14 . . . . Knockbacks . | . . . . . . . . . . Impact . | . . . . . . . . . . Kinetic . | . . . . . . . . . . Secondary . | . . . . . . . . . . Self-Inflicted Damage 17 | . . . . 17 . . . . . Shots 1 | . . . . 1 . . . . . Rammed . | . . . . . . . . . . Targets Rammed . | . . . . . . . . . . Kicked . | . . . . . . . . . . Crushed . | . . . . . . . . . . Highest Temperature 546 | . 40 162 546 271 517 210 173 9 96 Average Temperature 142 | . 18 71 174 74 210 114 69 9 56 Received Heat Transfer 1789 | . . 108 700 381 573 18 9 . . Effects 37 | . . . 22 1 14 . . . . Shutdowns 11 | . . . 5 . 6 . . . . Energy Bleed 1 | . . . 1 . . . . . . Interference 10 | . . . 7 1 2 . . . . Matter Decay 1 | . . . 1 . . . . . . Short Circuit 3 | . . . 2 . 1 . . . . Damage (minor) 2 | . . . 2 . . . . . . Damage (major) 9 | . . . 4 . 5 . . . . Siege Activations . | . . . . . . . . . . Robots Corrupted . | . . . . . . . . . . Combat Hostiles . | . . . . . . . . . . Parts Fried 6 | . 1 3 . 2 . . . . . Impact Corruptions . | . . . . . . . . . . Robots Melted 2 | . . . . 1 . 1 . . . Combat Hostiles 2 | . . . . 1 . 1 . . . Parts Melted 7 | . . . 2 2 2 . . . 1 Heat Transferred 6308 | . . 248 1776 901 1817 474 572 . 520 Parts Sabotaged . | . . . . . . . . . . Parts Stolen . | . . . . . . . . . . Parts Stripped . | . . . . . . . . . . Power Chain Reactions 3 | . . 2 . 1 . . . . . Alert | -11 -10 -9 -8 -7 -6 -5 -5 -5 -4 ------- Run | Yrd Mat Mat Mat Fac Fac Fac Upp War Pro Peak Influence 396 | . 123 380 396 284 206 93 . . . Initial 105 | . . 43 64 105 35 38 . . . Average 123 | . 93 207 213 101 92 45 . . . Maximum Alert Level 1 | . . 1 1 1 1 . . . . Low Security (%) 78 | 100 100 54 48 89 82 100 . . . Level 1 21 | . . 45 51 10 17 . . . . Level 2 . | . . . . . . . . . . Level 3 . | . . . . . . . . . . Level 4 . | . . . . . . . . . . Level 5 . | . . . . . . . . . . High Security . | . . . . . . . . . . Max Security . | . . . . . . . . . . Squads Dispatched 9 | . . 1 . 6 2 . . . . Investigation 1 | . . . . 1 . . . . . Extermination 4 | . . . . 3 1 . . . . Reinforcement 4 | . . 1 . 2 1 . . . . Assault . | . . . . . . . . . . Garrison . | . . . . . . . . . . Intercept . | . . . . . . . . . . Searches Triggered . | . . . . . . . . . . Construction Impeded 1 | . . . . . 1 . . . . Haulers Reinforced . | . . . . . . . . . . Active Scanning Responses . | . . . . . . . . . . Cargo Convoy Interrupts . | . . . . . . . . . . Stealth | -11 -10 -9 -8 -7 -6 -5 -5 -5 -4 --------- Run | Yrd Mat Mat Mat Fac Fac Fac Upp War Pro Distress Signals 1 | . 1 . . . . . . . . Communications Jammed . | . . . . . . . . . . Distress Signals . | . . . . . . . . . . Times Spotted 84 | . 7 11 20 17 13 2 6 . 8 Peak Tracking Total 6 | . 6 3 6 3 4 1 5 . 5 Tactical Retreats 4 | . . . 2 . . . . . 2 Traps | -11 -10 -9 -8 -7 -6 -5 -5 -5 -4 ------- Run | Yrd Mat Mat Mat Fac Fac Fac Upp War Pro Traps Triggered 4 | . 1 . 1 1 1 . . . . Indirectly . | . . . . . . . . . . Trap Hack Attempts . | . . . . . . . . . . Triggered . | . . . . . . . . . . Disarmed . | . . . . . . . . . . Reprogrammed . | . . . . . . . . . . Reused . | . . . . . . . . . . Traps Extracted . | . . . . . . . . . . Installed . | . . . . . . . . . . Triggered 2 | . . . . . . . . . 2 Machines | -11 -10 -9 -8 -7 -6 -5 -5 -5 -4 ---------- Run | Yrd Mat Mat Mat Fac Fac Fac Upp War Pro Machines Disabled 2 | . 1 1 . . . . . . . Max in Single Turn 1 | . 1 1 . . . . . . . Machines Repaired . | . . . . . . . . . . Machines Dismantled . | . . . . . . . . . . Machines Sabotaged . | . . . . . . . . . . Overloaded Fab Kills . | . . . . . . . . . . Hacking | -11 -10 -9 -8 -7 -6 -5 -5 -5 -4 --------- Run | Yrd Mat Mat Mat Fac Fac Fac Upp War Pro Machines Accessed . | . . . . . . . . . . Terminals . | . . . . . . . . . . Fabricators . | . . . . . . . . . . Repair Stations . | . . . . . . . . . . Recycling Units . | . . . . . . . . . . Scanalyzers . | . . . . . . . . . . Garrison Access . | . . . . . . . . . . Total Hacks . | . . . . . . . . . . Successful . | . . . . . . . . . . Failed . | . . . . . . . . . . Catastrophic . | . . . . . . . . . . Database Lockouts . | . . . . . . . . . . Manual . | . . . . . . . . . . Terminals . | . . . . . . . . . . Fabricators . | . . . . . . . . . . Repair Stations . | . . . . . . . . . . Recycling Units . | . . . . . . . . . . Scanalyzers . | . . . . . . . . . . Garrison Access . | . . . . . . . . . . Terminal Hacks . | . . . . . . . . . . Fabricator Hacks . | . . . . . . . . . . Repair Station Hacks . | . . . . . . . . . . Recycling Unit Hacks . | . . . . . . . . . . Scanalyzer . | . . . . . . . . . . Garrison Access Hacks . | . . . . . . . . . . Unauthorized Hacks . | . . . . . . . . . . Terminals . | . . . . . . . . . . Fabricators . | . . . . . . . . . . Repair Stations . | . . . . . . . . . . Recycling Units . | . . . . . . . . . . Scanalyzers . | . . . . . . . . . . Garrison Access . | . . . . . . . . . . Data Cores Recovered . | . . . . . . . . . . Used . | . . . . . . . . . . Hacking Detections . | . . . . . . . . . . Full Trace Events . | . . . . . . . . . . Feedback Events . | . . . . . . . . . . Feedback Blocked . | . . . . . . . . . . Robot Schematics Acquired . | . . . . . . . . . . Robots Built . | . . . . . . . . . . Authchips . | . . . . . . . . . . Time . | . . . . . . . . . . Total Robot Build Rating . | . . . . . . . . . . Part Schematics Acquired . | . . . . . . . . . . Parts Built . | . . . . . . . . . . Authchips . | . . . . . . . . . . Time . | . . . . . . . . . . Total Part Build Rating . | . . . . . . . . . . Parts Repaired . | . . . . . . . . . . Time . | . . . . . . . . . . Parts Recycled . | . . . . . . . . . . Recycled Matter . | . . . . . . . . . . Retrieved Matter . | . . . . . . . . . . Retrieved Components . | . . . . . . . . . . Parts Scanalyzed . | . . . . . . . . . . Part Schematics Acquired . | . . . . . . . . . . Parts Damaged . | . . . . . . . . . . Bothacking | -11 -10 -9 -8 -7 -6 -5 -5 -5 -4 ------------ Run | Yrd Mat Mat Mat Fac Fac Fac Upp War Pro Used RIF Installer . | . . . . . . . . . . Robots Hacked . | . . . . . . . . . . Non-combat . | . . . . . . . . . . Combat . | . . . . . . . . . . Robot Hacks Applied . | . . . . . . . . . . Relay Couplers Released . | . . . . . . . . . . Fabnet Peak Effective % . | . . . . . . . . . . Robots Rewired . | . . . . . . . . . . Allies Hacked . | . . . . . . . . . . Hacks Repelled . | . . . . . . . . . . Allies | -11 -10 -9 -8 -7 -6 -5 -5 -5 -4 -------- Run | Yrd Mat Mat Mat Fac Fac Fac Upp War Pro Total Allies . | . . . . . . . . . . Largest Group . | . . . . . . . . . . Highest-Rated Group . | . . . . . . . . . . Highest-Rated Ally . | . . . . . . . . . . Total Orders . | . . . . . . . . . . Ally Attacks . | . . . . . . . . . . Total Damage . | . . . . . . . . . . Kills . | . . . . . . . . . . Allies Corrupted . | . . . . . . . . . . Allies Melted . | . . . . . . . . . . Intel | -11 -10 -9 -8 -7 -6 -5 -5 -5 -4 ------- Run | Yrd Mat Mat Mat Fac Fac Fac Upp War Pro Robot Analysis Total . | . . . . . . . . . . Derelict Logs Recovered 1 | . . . . . . . 1 . . Drone Launches . | . . . . . . . . . . Drone Recoveries . | . . . . . . . . . . Exploration | -11 -10 -9 -8 -7 -6 -5 -5 -5 -4 ------------- Run | Yrd Mat Mat Mat Fac Fac Fac Upp War Pro Turns Passed 8957 | 75 297 460 785 1284 915 436 3028 559 1118 Spaces Moved 1988 | 48 161 231 261 470 322 117 276 37 65 Core 231 | 22 . . 1 . . . 114 29 65 Treads 1607 | 26 161 231 260 470 322 117 20 . . Legs . | . . . . . . . . . . Wheels . | . . . . . . . . . . Hover 150 | . . . . . . . 142 8 . Flight . | . . . . . . . . . . Fastest Speed 50 | 50 160 160 160 240 235 320 560 600 1400 Average Speed 410 | 126 160 160 223 240 241 348 1072 1501 1636 Slowest Speed 1850 | 160 160 160 1850 240 320 560 1750 1750 1750 Overloaded Moves . | . . . . . . . . . . Propulsion Burnouts . | . . . . . . . . . . Robots Hopped . | . . . . . . . . . . Cave-ins Triggered . | . . . . . . . . . . Exploration Rate (%) 16 | 4 32 28 26 12 12 4 31 8 10 Regions Visited 9 Branch Regions 3 Pre-discovered Areas . | . . . . . . . . . . Known Exits Taken . | . . . . . . . . . . Unknown Exits Taken 9 | 1 1 1 1 1 1 1 1 1 . Scrap Searched . | . . . . . . . . . . Spaces Dug . | . . . . . . . . . . Terrain Destroyed 20 | . . 14 1 5 . . . . . Melee . | . . . . . . . . . . Projectile 1 | . . . 1 . . . . . . AOE 19 | . . 14 . 5 . . . . . Terrain Rammed . | . . . . . . . . . . Walls Destroyed . | . . . . . . . . . . Machines Disabled . | . . . . . . . . . . Actions | -11 -10 -9 -8 -7 -6 -5 -5 -5 -4 --------- Run | Yrd Mat Mat Mat Fac Fac Fac Upp War Pro Total 2482 | 61 186 272 376 552 398 136 343 57 101 Wait 125 | . . 5 15 13 7 5 53 21 6 Move 1979 | 47 160 230 260 469 321 116 275 36 65 Hop . | . . . . . . . . . . Pick Up 76 | 8 8 5 29 13 11 1 . . 1 Fast Attach 10 | 4 . . . 1 4 1 . . . Attach 43 | 2 1 2 13 2 5 3 3 . 12 Detach . | . . . . . . . . . . Swap 26 | . 2 3 5 7 7 2 . . . Drop 40 | . 6 3 7 10 12 2 . . . Fire 177 | . 9 24 44 36 30 5 12 . 17 Melee 6 | . . . 3 1 1 1 . . . Ram . | . . . . . . . . . . Kick . | . . . . . . . . . . Crush . | . . . . . . . . . . Escape Stasis . | . . . . . . . . . . Rewire . | . . . . . . . . . . Trap . | . . . . . . . . . . Miscellaneous . | . . . . . . . . . . Route ------- -11/Scrapyard -10/Materials -9/Materials -8/Materials -7/Factory -6/Factory -5/Factory -5/Upper Caves -5/Warlord -4/Proximity Caves History --------- Turn | Location | Event 9 | -11/Scrapyard | Discovered new exit (range 15) 76 | -11/Scrapyard | Entered Materials 303 | -10/Materials | Build established: Mutant 363 | -10/Materials | Discovered new exit (range 5) 373 | -10/Materials | Entered another Materials area 373 | -9/Materials | Evolved 2 slots: Propulsion x1, Weapon x1 674 | -9/Materials | Build established: Skirmisher 748 | -9/Materials | Discovered new exit (range 17) 833 | -9/Materials | Entered another Materials area 833 | -8/Materials | Evolved 2 slots: Power x1, Utility x1 1299 | -8/Materials | Lost 6 parts (1p2n1u2w) 1491 | -8/Materials | Build established: Mutant 1496 | -8/Materials | Discovered new exit (range 16) 1618 | -8/Materials | Entered Factory 1618 | -7/Factory | Evolved 2 slots: Propulsion x1, Weapon x1 1906 | -7/Factory | Build established: Tank 2866 | -7/Factory | Discovered new exit (range 16) 2902 | -7/Factory | Entered another Factory area 2902 | -6/Factory | Evolved 2 slots: Utility x2 3192 | -6/Factory | Build established: Scavenger-Gunner 3715 | -6/Factory | Discovered new exit (range 15) 3817 | -6/Factory | Entered another Factory area 3817 | -5/Factory | Evolved 2 slots: Utility x2 3841 | -5/Factory | Build established: Hacker-Gunner 4174 | -5/Factory | Discovered new exit (range 14) 4253 | -5/Factory | Entered Upper Caves 4256 | -5/Upper Caves | A Derelict revealed a hidden shortcut to "reach the base" 4345 | -5/Upper Caves | Attracted the attention of an 0b10 checkpoint 4435 | -5/Upper Caves | Lost 6 parts (1p2n3w) 4673 | -5/Upper Caves | Build established: Hacker-Mutant 5015 | -5/Upper Caves | Learned location of 1 exit from Factory 7281 | -5/Upper Caves | Entered Warlord 7718 | -5/Warlord | Discovered new exit (range 8) 7840 | -5/Warlord | Entered Proximity Caves 8410 | -4/Proximity Caves | Lost 9 parts (2p1n3u3w) 8450 | -4/Proximity Caves | Lost 3 parts (2u1w) 8526 | -4/Proximity Caves | Core integrity fell below 50% 8811 | -4/Proximity Caves | Build established: Mutant 8934 | -4/Proximity Caves | Core integrity fell below 20% 8958 | -4/Proximity Caves | Destroyed by H-77 Assassin with Coil Gun Last Messages --------------- 08921_ Penetrated by Slug. 08921_ Slug penetrates H-77 Assassin. 08924_ Slug penetrates Wall. 08927_ Penetrated by Slug. 08931_ System corrupted: Substantial component data lost. 08931_ Slug penetrates Wall. 08933_ Penetrated by Slug. 08934_ Particle Gun destroyed. 08936_ Penetrated by Slug. 08940_ Slug penetrates H-77 Assassin. 08943_ Penetrated by Slug. 08943_ Fusion Compressor destroyed. 08943_ Penetrated by Slug. 08949_ Fusion Compressor destroyed. 08949_ Penetrated by Slug. 08952_ Katana destroyed. 08952_ Penetrated by Slug. 08958_ Slug penetrates Wall. 08958_ Penetrated by Slug. Map ----- +----------------------------------------------------+ | ?????????????????????????????????????????????????? | | ?????????????????????????????????????????????????? | | ?????????????????????????????????????????????????? | | ?????????????????????????????????????????????????? | | ?????????????????????????????????????????????????? | | ?????????????????????????????????????????????????? | | ?????????????????????????????????????????????????? | | ??#######????????????????????????????????????????? | | ??#"""""#????????????????????????????????????????? | | ??#"""""#????????????????????????????????????????? | | ??#"""""?????????????????????????????????????????? | | ???# #?????????????????????????????????????????? | | ??## ##?????????????????#####??????????????????? | | ??# ################### #####??????????????? | | ??# #??????????????? | | ???# #???????????????? | | ??## ############### ##???????????????? | | ??# #?????????????# ### ##????????????????? | | ??### #?????????????# #######?????????????????? | | ????## #?????????????# ##?????????????????????? | | ?????# #?????????????# ##????????????????????? | | ?????# #?????????????# ###??????????????????? | | ?????# #????????????## ##?????????????????? | | ?????# ????????????# ##????????????????? | | ?????# ## #????????????????? | | ?????## ?????# @ #????????????????? | | ??????? ?????# #????????????????? | | ??????? ##????????????????? | | ??????? ### #?????????????????? | | ??????? #?# ????????????????? | | ??????? ?#hh #??????????????? | | ??????? ? #??????????????? | | ??????? ? ### #?????????????? | | ???????? ???# # ##??? #?????????????? | | ????????????# ?## ????? ????????????? | | ????????????????## ????? ????????????? | | ?????????????????## ????? ###????????????? | | ??????????????????###??????? ##??????????????? | | ???????????????????????????? #????????????????? | | ???????????????????????????? ???????????????????? | | ?????????????????????????????????????????????????? | | ?????????????????????????????????????????????????? | | ?????????????????????????????????????????????????? | | ?????????????????????????????????????????????????? | | ?????????????????????????????????????????????????? | | ?????????????????????????????????????????????????? | | ?????????????????????????????????????????????????? | | ?????????????????????????????????????????????????? | | ?????????????????????????????????????????????????? | | ?????????????????????????????????????????????????? | +----------------------------------------------------+ Best States ------------- Heat Dissipation 95 Coolant Potential 80 Energy Generation 45 Energy Capacity 430 Matter Stores 300 Matter Capacity 300 Sight Range 18 Terrain Scan Density 10 Base Temperature (-) 150 Armor Coverage 225 Resistance: KI 20 Resistance: TH 20 Resistance: EX 20 Resistance: EM 20 Resistance: I 20 Resistance: S 20 Resistance: P 20 Evasion (%) 50 Core Analysis 6 Recoil Reduction 4 Offensive Hacking 10 Defensive Hacking 10 Item Schematics ----------------- None Robot Schematics ------------------ None Fabricated ------------ Nothing Alien Tech Used ----------------- None Achievements -------------- None Challenges ------------ None Game ------ Seed SupersonicXenonArticulator Manual? 0 Play Time 00:47:38 Cumulative 28.3 hours Start 2025.03.09 @ 23:56:36 End 2025.03.10 @ 01:02:16 Sessions 1 Manual Loads 0 Difficulty Adventurer Special Mode None Game No. 53 Rogue 7 Adventurer 46 Explorer 0 Win Type - Total 0 Types 0/0/0/0/0/0/0/0/0 Lore% 6 Gallery% 26 Achievement% 22 Wizard Run 0 Options --------- Layout 2 ASCII 0 Keyboard 0 Movement Mouse Keybinds 0 Fullscreen 1 Font 24/Smallcaps Map View 50x44 Zoom Use 0% Tactical HUD 1 Map Filters NONE Filters NONE Steam 1 RUN: 00029a6c-ec4a-4a00-b3ba-0651ea54a280